bitfinex-derivatives/quotes_SOLF0:USTF0_20250509
["timestamp","ask_amount","ask_price","bid_price","bid_amount"]
[1746819107621,5.8278,171.58,171.55,5.8286]
[1746819107821,60.34,171.6,171.47,309.085]
[1746819108021,5.8275,171.59,171.55,5.8286]
[1746819108925,5.8279,171.58,171.55,5.8286]
[1746819110126,60.34,171.6,171.47,248.745]
[1746819110425,60.34,171.6,171.47,3.905]
[1746819110626,1.9212,171.61,171.47,3.905]
[1746819110823,60.32,171.6,171.47,3.905]
[1746819111027,5.8281,171.58,171.55,5.8286]
[1746819111725,5.8282,171.57,171.54,5.8291]
[1746819112121,60.32,171.6,171.47,248.745]
[1746819112323,5.8289,171.55,171.47,248.745]
[1746819112520,60.32,171.6,171.47,248.745]
[1746819112831,5.8286,171.56,171.53,5.8293]
[1746819113332,5.8286,171.56,171.47,3.905]
[1746819113333,5.8289,171.55,171.52,5.8297]
[1746819113533,60.32,171.6,171.47,3.905]
[1746819114132,5.829,171.55,171.52,5.8299]
[1746819115336,60.32,171.6,171.47,3.905]
[1746819115934,5.8277,171.59,171.56,5.8285]
[1746819116134,35.9077,171.59,171.56,5.8285]
[1746819116334,30.08,171.59,171.47,248.745]
[1746819116634,30.08,171.59,171.55,5.8288]
[1746819117238,5.8279,171.58,171.55,5.8288]
[1746819117426,30.08,171.59,171.55,5.8288]
[1746819117626,30.08,171.59,171.54,5.8291]
[1746819117836,5.8284,171.57,171.54,5.8291]
[1746819118832,5.8285,171.56,171.53,5.8294]
[1746819119437,5.8283,171.57,171.54,5.829]
[1746819119838,30.08,171.59,171.54,5.829]
[1746819120135,30.08,171.59,171.47,248.745]
[1746819120338,30.08,171.59,171.47,3.905]
[1746819120637,5.8298,171.53,171.5,5.8304]
[1746819120938,30.06,171.54,171.43,1.8176]
[1746819121139,30.2,171.53,171.43,1.8176]
[1746819121637,5.8308,171.5,171.47,5.8314]
[1746819121839,30.2,171.53,171.43,1.8176]
[1746819122035,5.8303,171.51,171.43,1.8176]
[1746819123241,5.8308,171.5,171.43,1.8176]
[1746819123843,5.8308,171.5,171.46,5.8318]
[1746819124040,30.2,171.53,171.42,30.2]
[1746819124240,30.2,171.53,171.45,5.8323]
[1746819125040,30.2,171.53,171.41,3.6945]
[1746819125734,5.8308,171.5,171.41,3.6945]
[1746819125940,30.04,171.49,171.45,5.8322]
[1746819126140,30.04,171.49,171.41,3.6945]
[1746819126541,35.8712,171.49,171.41,3.6945]
[1746819127240,35.8712,171.49,171.46,5.8318]
[1746819128646,5.8313,171.48,171.46,5.8318]
[1746819128841,5.8313,171.48,171.45,5.8321]
[1746819129049,5.8313,171.48,171.41,3.6945]
[1746819129247,35.871,171.49,171.46,5.8319]
[1746819129648,1.9757,171.54,171.41,3.6945]
[1746819129845,30.04,171.52,171.41,248.5345]
[1746819130449,5.8304,171.51,171.48,5.831]
[1746819130743,30.04,171.52,171.41,248.5345]
[1746819131151,5.8303,171.51,171.41,248.5345]
[1746819131757,5.8303,171.51,171.48,5.8309]
[1746819132153,35.87,171.52,171.41,248.5345]
[1746819132555,30.04,171.52,171.41,248.5345]
[1746819132756,5.8309,171.5,171.41,248.5345]
[1746819132952,30.04,171.52,171.41,248.5345]
[1746819133351,30.04,171.52,171.47,5.8315]
[1746819134357,5.8308,171.5,171.47,5.8315]
[1746819134957,5.8304,171.51,171.48,5.8312]
[1746819135250,30.04,171.52,171.48,5.8312]
[1746819135962,5.8303,171.51,171.48,5.8312]
[1746819136762,30.04,171.52,171.41,3.6945]
[1746819136955,30.04,171.52,171.41,248.5345]
[1746819137157,30.04,171.52,171.51,5.8302]
[1746819137861,30.04,171.56,171.45,1.8257]
[1746819138060,30.04,171.56,171.45,246.6657]
[1746819138657,29.98,171.57,171.45,246.6657]
[1746819138853,30.04,171.6,171.45,246.6657]
[1746819139060,30.04,171.6,171.46,1.16645281]
[1746819139260,30.04,171.6,171.47,11.663]
[1746819139464,30.04,171.6,171.48,30.04]
[1746819139764,30.04,171.6,171.49,33.8001]
[1746819140162,30.04,171.6,171.58,5.8276]
[1746819140664,30.04,171.6,171.49,278.6401]
[1746819141362,30.04,171.6,171.56,5.8285]
[1746819141561,30.04,171.6,171.49,278.6401]
[1746819141759,30.04,171.6,171.5,62.0]
[1746819142863,30.04,171.6,171.57,5.8279]
[1746819143360,30.04,171.6,171.5,306.84]
[1746819143558,30.04,171.6,171.58,5.8276]
[1746819143959,30.04,171.6,171.5,306.84]
[1746819144664,30.04,171.6,171.59,5.8275]
[1746819144865,5.8265,171.62,171.59,5.8275]
[1746819147360,509.7662,171.63,171.6,5.8271]
[1746819147565,509.7662,171.63,171.54,1.8461]
[1746819147759,509.7662,171.63,171.54,31.7661]
[1746819148859,503.94,171.63,171.54,31.7661]
[1746819149059,503.94,171.63,171.58,5.8278]
[1746819149260,503.94,171.63,171.54,31.7661]
[1746819149460,509.7663,171.63,171.54,31.7661]
[1746819150863,505.5433,171.71,171.54,31.7661]
[1746819151069,30.02,171.66,171.54,276.6061]
[1746819151270,30.02,171.66,171.59,5.8273]
[1746819151567,30.02,171.66,171.54,276.6061]
[1746819151767,30.02,171.66,171.54,276.5661]
[1746819152469,5.8263,171.63,171.59,5.8272]
[1746819152864,5.8263,171.63,171.54,32.7261]
[1746819153770,5.8263,171.63,171.59,5.8272]
[1746819153969,5.8263,171.63,171.54,32.7261]
[1746819154374,5.8263,171.63,171.55,1.8094]
[1746819154768,5.8259,171.64,171.55,1.8094]
[1746819154968,30.02,171.66,171.55,1.8094]
[1746819155172,30.02,171.66,171.56,1.8299]
[1746819155371,5.8257,171.65,171.61,5.8267]
[1746819155570,5.8257,171.65,171.56,1.8299]
[1746819155974,5.8257,171.65,171.62,5.8262]
[1746819156378,35.8453,171.66,171.62,5.8262]
[1746819156879,35.8453,171.66,171.63,5.8261]
[1746819157075,30.02,171.66,171.56,1.8299]
[1746819157376,30.02,171.66,171.65,5.8255]
[1746819157878,30.02,171.66,171.59,59.72]
[1746819158781,35.8452,171.66,171.59,59.72]
[1746819159078,35.8452,171.66,171.63,5.8261]
[1746819159577,30.02,171.66,171.63,5.8261]
[1746819160177,35.8451,171.66,171.63,5.8261]
[1746819160373,35.8451,171.66,171.64,5.8258]
[1746819160677,30.02,171.66,171.64,5.8258]
[1746819162176,35.8453,171.66,171.59,59.72]
[1746819162775,30.02,171.66,171.59,59.72]
[1746819164179,30.02,171.66,171.65,5.8255]
[1746819165281,29.86,171.7,171.68,5.8242]
[1746819165481,29.86,171.7,171.6,11.6542]
[1746819165870,29.86,171.7,171.69,5.8241]
[1746819166582,35.6824,171.74,171.71,5.8233]
[1746819166778,65.4824,171.74,171.71,5.8233]
[1746819167785,59.66,171.74,171.72,5.823]
[1746819168183,29.86,171.74,171.72,5.823]
[1746819168681,35.6824,171.74,171.71,5.8233]
[1746819173378,5.8228,171.73,171.7,5.8236]
[1746819173582,9.59278939,171.73,171.63,1.8541]
[1746819174983,5.8237,171.71,171.68,5.8242]
[1746819175583,5.8237,171.71,171.69,5.8241]
[1746819176585,5.8232,171.72,171.69,5.8241]
[1746819176781,9.59278939,171.73,171.7,5.8237]
[1746819176988,29.86,171.74,171.63,1.8541]
[1746819177384,35.6826,171.74,171.71,5.8231]
[1746819177584,35.6826,171.74,171.63,1.8541]
[1746819177884,35.6826,171.74,171.71,5.8232]
[1746819178887,5.8228,171.73,171.7,5.8237]
[1746819179089,5.8228,171.73,171.64,29.72]
[1746819179386,35.6827,171.74,171.71,5.8232]
[1746819180288,5.8228,171.73,171.71,5.8232]
[1746819180989,35.6826,171.74,171.71,5.8232]
[1746819181189,29.86,171.74,171.64,29.72]
[1746819181384,29.86,171.74,171.64,284.15278939]
[1746819181791,29.86,171.74,171.73,5.8228]
[1746819181984,59.54,171.78,171.67,9.59278939]
[1746819182190,29.84,171.78,171.68,33.6587]
[1746819182383,29.84,171.78,171.77,5.8214]
[1746819182590,29.84,171.78,171.69,29.7]
[1746819182788,29.84,171.78,171.7,1.9112]
[1746819184692,29.68,171.82,171.7,11.50398939]
[1746819184892,29.68,171.82,171.7,256.34398939]
[1746819185193,29.68,171.82,171.79,5.8204]
[1746819185385,29.68,171.82,171.73,29.68]
[1746819185893,35.4997,171.82,171.74,1.9577]
[1746819186193,35.4997,171.82,171.74,31.6377]
[1746819186593,5.8203,171.81,171.7,246.7512]
[1746819186892,29.68,171.82,171.71,59.36]
[1746819187194,5.8204,171.8,171.77,5.8212]
[1746819188097,5.8204,171.8,171.78,5.821]
[1746819188293,5.8202,171.81,171.78,5.821]
[1746819188697,59.36,171.82,171.71,59.36]
[1746819188996,9.59278939,171.8,171.7,246.7512]
[1746819189197,5.8216,171.77,171.73,5.8228]
[1746819189691,9.59278939,171.8,171.73,5.8228]
[1746819189902,5.8221,171.75,171.72,5.823]
[1746819190897,59.34,171.76,171.68,1.9085]
[1746819191093,59.34,171.76,171.65,503.3]
[1746819191594,59.34,171.76,171.7,5.8237]
[1746819191795,9.59278939,171.74,171.64,31.5637]
[1746819191998,5.8233,171.72,171.69,5.8239]
[1746819192200,74.67765451,171.76,171.64,31.5637]
[1746819193294,5.8233,171.72,171.69,5.824]
[1746819193800,74.67765451,171.76,171.64,31.5637]
[1746819194003,59.34,171.76,171.64,31.5637]
[1746819194297,59.34,171.76,171.72,5.8231]
[1746819194298,5.8222,171.75,171.72,5.8231]
[1746819194699,59.34,171.76,171.64,31.5637]
[1746819194898,74.67765451,171.76,171.64,31.5637]
[1746819195497,5.8233,171.72,171.69,5.824]
[1746819195697,29.68,171.71,171.69,5.824]
[1746819196701,29.68,171.71,171.7,5.8238]
[1746819196997,3.3587,171.81,171.69,29.62]
[1746819197195,29.68,171.8,171.77,5.8212]
[1746819197395,29.68,171.8,171.7,3.8243]
[1746819197801,29.68,171.8,171.71,1.821]
[1746819198001,35.5004,171.8,171.71,1.821]
[1746819198399,35.5004,171.8,171.77,5.8211]
[1746819198595,29.68,171.8,171.77,5.8211]
[1746819198794,29.68,171.8,171.71,1.821]
[1746819198996,29.68,171.8,171.79,5.8207]
[1746819199303,29.68,171.8,171.71,1.821]
[1746819199602,29.68,171.8,171.78,5.8209]
[1746819200798,29.68,171.8,171.71,1.821]
[1746819201803,29.68,171.8,171.79,5.8207]
[1746819202099,29.6,171.83,171.79,5.8207]
[1746819202303,29.6,171.83,171.8,5.8202]
[1746819203098,35.4195,171.83,171.8,5.8202]
[1746819203304,5.8195,171.83,171.74,59.28]
[1746819204399,5.8195,171.83,171.79,5.8204]
[1746819204702,5.8195,171.83,171.74,59.28]
[1746819204905,5.8195,171.83,171.79,5.8205]
[1746819205105,5.8198,171.82,171.79,5.8205]
[1746819206502,29.68,171.84,171.74,59.28]
[1746819207004,29.68,171.84,171.81,5.8199]
[1746819207204,35.4991,171.84,171.81,5.8199]
[1746819208105,29.68,171.84,171.74,59.28]
[1746819208304,29.68,171.84,171.74,304.12]
[1746819208700,29.68,171.84,171.81,5.8198]
[1746819209906,35.4991,171.84,171.81,5.8198]
[1746819212308,35.4991,171.84,171.82,5.8196]
[1746819212610,29.68,171.84,171.82,5.8196]
[1746819212909,29.68,171.84,171.83,5.8194]
[1746819213408,29.68,171.84,171.74,304.12]
[1746819213805,29.68,171.84,171.74,313.68959271]
[1746819214112,29.68,171.84,171.82,5.8194]
[1746819214911,29.68,171.84,171.83,5.8194]
[1746819215213,29.68,171.84,171.74,314.68959271]
[1746819215411,29.68,171.84,171.83,5.8194]
[1746819215709,5.8181,171.87,171.75,11.6438]
[1746819216012,5.8181,171.87,171.75,256.4838]
[1746819216211,5.8181,171.87,171.76,1.9159]
[1746819216408,5.8181,171.87,171.77,1.8123]
[1746819216712,5.8181,171.87,171.84,5.8189]
[1746819216911,5.8184,171.86,171.84,5.8189]
[1746819218412,5.8181,171.87,171.84,5.8189]
[1746819220915,5.8184,171.86,171.84,5.8189]
[1746819225819,5.8184,171.86,171.83,5.8193]
[1746819226916,9.56959271,171.86,171.74,1.0]
[1746819227114,9.56959271,171.82,171.74,1.0]
[1746819227309,58.96,171.81,171.74,1.0]
[1746819227919,5.8213,171.78,171.75,5.8219]
[1746819228123,58.96,171.81,171.74,1.0]
[1746819228426,9.56959271,171.79,171.74,1.0]
[1746819228720,5.8221,171.75,171.74,1.0]
[1746819229820,35.3218,171.76,171.74,1.0]
[1746819230821,68.50959271,171.76,171.64,244.84]
[1746819231009,9.56959271,171.73,171.63,29.44]
[1746819231313,5.8233,171.72,171.69,5.8239]
[1746819233322,5.8234,171.71,171.68,5.8243]
[1746819233619,9.56959271,171.73,171.63,29.44]
[1746819234822,5.8237,171.71,171.63,29.44]
[1746819235018,35.3437,171.71,171.63,29.44]
[1746819235419,35.3437,171.71,171.68,5.8242]
[1746819235924,29.52,171.71,171.63,29.44]
[1746819236124,58.96,171.71,171.63,29.44]
[1746819236421,9.56959271,171.7,171.64,5.8255]
[1746819236723,9.56959271,171.7,171.61,5.7392]
[1746819236923,9.56959271,171.7,171.63,5.8259]
[1746819237520,9.56959271,171.7,171.64,5.8258]
[1746819237720,9.56959271,171.7,171.61,3.7498]
[1746819238020,9.56959271,171.7,171.61,1.8124]
[1746819239120,9.56959271,171.7,171.63,5.8259]
[1746819239424,9.56959271,171.7,171.61,1.8124]
[1746819239823,5.8251,171.67,171.64,5.8258]
[1746819240627,5.8252,171.66,171.63,5.826]
[1746819240828,29.52,171.66,171.61,1.8124]
[1746819241031,58.94,171.66,171.58,29.52]
[1746819241327,5.8258,171.65,171.58,29.52]
[1746819242021,5.8258,171.65,171.6,5.8271]
[1746819242227,5.8258,171.65,171.58,29.52]
[1746819242928,58.94,171.66,171.56,3.8075]
[1746819243326,64.7654,171.66,171.56,33.2275]
[1746819243826,58.94,171.66,171.56,33.2275]
[1746819244620,68.50959271,171.66,171.56,3.8075]
[1746819244829,68.50959271,171.66,171.6,5.8268]
[1746819245731,5.826,171.64,171.61,5.8267]
[1746819246030,29.4,171.65,171.56,3.8075]
[1746819246931,35.2257,171.65,171.62,5.8263]
[1746819247233,29.4,171.65,171.56,3.8075]
[1746819247431,35.2257,171.65,171.62,5.8264]
[1746819247631,29.4,171.65,171.62,5.8264]
[1746819248432,35.2256,171.65,171.62,5.8264]
[1746819248730,29.4,171.65,171.63,5.8261]
[1746819248933,29.4,171.65,171.56,3.8075]
[1746819249325,9.56959271,171.63,171.55,1.8521]
[1746819249632,5.8274,171.6,171.54,83.02846973]
[1746819249825,35.2274,171.6,171.54,1.0]
[1746819250221,5.8276,171.59,171.56,5.8283]
[1746819250730,29.4,171.6,171.54,1.0]
[1746819251032,5.8284,171.57,171.54,6.8292]
[1746819251333,29.38,171.56,171.5,5.8305]
[1746819251631,29.4,171.55,171.48,1.833]
[1746819252131,5.8295,171.54,171.51,5.8302]
[1746819252632,29.4,171.55,171.48,1.833]
[1746819253433,29.4,171.55,171.51,5.83]
[1746819253633,29.4,171.55,171.48,1.833]
[1746819254029,29.4,171.55,171.54,5.8292]
[1746819254231,29.4,171.59,171.48,1.833]
[1746819254433,29.4,171.59,171.48,246.673]
[1746819254631,29.4,171.59,171.58,5.8278]
[1746819256736,29.4,171.59,171.5,29.38]
[1746819257128,29.4,171.59,171.51,29.4]
[1746819257528,29.4,171.59,171.52,1.95]
[1746819257731,29.4,171.63,171.52,1.95]
[1746819258237,5.8269,171.61,171.58,5.8278]
[1746819258731,5.8267,171.62,171.58,5.8278]
[1746819258934,29.4,171.63,171.52,1.95]
[1746819259840,5.827,171.61,171.57,5.8279]
[1746819260134,5.827,171.61,171.52,1.95]
[1746819260637,5.827,171.61,171.57,5.828]
[1746819260839,5.827,171.61,171.52,1.95]
[1746819261736,5.827,171.61,171.58,5.8278]
[1746819262237,5.8266,171.62,171.59,5.8275]
[1746819262640,29.4,171.63,171.55,29.34]
[1746819262839,29.4,171.63,171.62,5.8265]
[1746819263534,58.74,171.67,171.63,5.826]
[1746819263737,29.4,171.67,171.56,277.8962]
[1746819263936,35.225,171.67,171.56,277.8962]
[1746819264240,29.4,171.67,171.56,277.8962]
[1746819264847,29.4,171.67,171.63,5.8258]
[1746819265135,35.225,171.67,171.56,277.8962]
[1746819265848,29.4,171.67,171.56,277.8962]
[1746819266342,35.2249,171.67,171.64,5.8256]
[1746819267246,29.4,171.67,171.56,339.8962]
[1746819267638,29.4,171.67,171.66,5.8251]
[1746819267841,29.4,171.71,171.61,29.4]
[1746819268039,29.4,171.71,171.62,1.8433]
[1746819268439,29.4,171.71,171.66,5.8249]
[1746819268739,58.72,171.71,171.66,5.8249]
[1746819268945,5.8239,171.7,171.62,1.8433]
[1746819269139,58.72,171.71,171.62,1.8433]
[1746819269752,5.8245,171.68,171.65,5.8253]
[1746819270047,58.72,171.71,171.62,1.8433]
[1746819270542,29.4,171.71,171.62,1.8433]
[1746819270845,35.2236,171.71,171.63,3.7804]
[1746819271038,29.4,171.71,171.63,3.7804]
[1746819272140,5.8238,171.7,171.67,5.8246]
[1746819272644,29.4,171.71,171.63,3.7804]
[1746819272845,35.2236,171.71,171.63,3.7804]
[1746819273249,29.4,171.71,171.63,3.7804]
[1746819273845,5.8238,171.7,171.67,5.8246]
[1746819274046,29.4,171.71,171.63,3.7804]
[1746819275141,5.8239,171.7,171.67,5.8246]
[1746819275852,29.4,171.71,171.63,3.7804]
[1746819276346,5.8245,171.68,171.65,5.8251]
[1746819276847,5.8245,171.68,171.66,5.8251]
[1746819277350,5.8242,171.69,171.66,5.8251]
[1746819277751,29.4,171.71,171.65,5.8253]
[1746819277950,5.8243,171.69,171.63,4.7804]
[1746819278150,29.4,171.71,171.63,4.7804]
[1746819278650,5.8242,171.69,171.63,4.7804]
[1746819278850,29.4,171.71,171.63,4.7804]
[1746819279150,29.4,171.71,171.66,5.8251]
[1746819279649,5.8243,171.69,171.66,5.8251]
[1746819280347,29.4,171.71,171.63,4.7804]
[1746819280749,63.6501,171.76,171.63,4.7804]
[1746819280948,5.8235,171.71,171.68,5.8243]
[1746819282756,9.58582556,171.74,171.63,4.7804]
[1746819283255,9.58582556,171.74,171.67,5.8248]
[1746819283455,9.58582556,171.74,171.63,4.7804]
[1746819283756,5.8238,171.7,171.67,5.8246]
[1746819284955,5.8238,171.7,171.68,5.8244]
[1746819286059,29.26,171.71,171.63,4.7804]
[1746819286757,29.26,171.71,171.7,5.8238]
[1746819287761,29.26,171.71,171.63,4.7804]
[1746819288257,5.824,171.7,171.67,5.8246]
[1746819288858,5.824,171.7,171.68,5.8243]
[1746819291464,5.824,171.7,171.67,5.8246]
[1746819291856,29.26,171.71,171.63,4.7804]
[1746819292162,38.84582556,171.71,171.63,1.0]
[1746819292962,5.8243,171.69,171.66,5.8249]
[1746819298657,5.8243,171.69,171.63,1.0]
[1746819299162,5.8243,171.69,171.66,5.825]
[1746819299461,5.8245,171.68,171.66,5.825]
[1746819300475,5.8248,171.67,171.65,5.8253]
[1746819300772,29.16,171.69,171.65,5.8253]
[1746819301068,29.16,171.69,171.63,1.0]
[1746819301571,34.9842,171.69,171.67,5.8247]
[1746819302169,29.16,171.69,171.68,5.8244]
[1746819302374,29.26,171.71,171.63,1.0]
[1746819302671,29.26,171.71,171.63,2.8113]
[1746819302972,35.0835,171.71,171.63,2.8113]
[1746819303976,35.0835,171.71,171.68,5.8242]
[1746819304172,29.26,171.71,171.63,2.8113]
[1746819304568,35.0834,171.71,171.63,2.8113]
[1746819304874,29.26,171.71,171.63,2.8113]
[1746819305477,35.0835,171.71,171.63,2.8113]
[1746819305677,29.26,171.71,171.63,2.8113]
[1746819305873,29.26,171.71,171.63,1.0]
[1746819306176,5.8245,171.68,171.65,5.8253]
[1746819306572,38.84582556,171.71,171.63,1.0]
[1746819307577,5.8247,171.68,171.65,5.8252]
[1746819307976,5.8248,171.67,171.65,5.8252]
[1746819308175,5.8248,171.67,171.63,1.0]
[1746819308176,5.8248,171.67,171.64,5.8257]
[1746819308382,5.8248,171.67,171.63,1.0]
[1746819309379,5.8248,171.67,171.64,5.8257]
[1746819309878,5.8248,171.67,171.65,5.8254]
[1746819310078,5.8245,171.68,171.63,1.0]
[1746819310581,34.9442,171.69,171.63,1.0]
[1746819310781,29.12,171.69,171.63,1.0]
[1746819311183,29.26,171.71,171.63,1.0]
[1746819311376,58.36,171.71,171.63,1.0]
[1746819311681,58.36,171.71,171.69,5.8238]
[1746819311876,58.36,171.71,171.63,1.0]
[1746819312180,29.26,171.71,171.63,1.0]
[1746819312382,29.26,171.71,171.69,5.8239]
[1746819313185,29.26,171.71,171.7,5.8238]
[1746819313785,29.26,171.71,171.69,5.824]
[1746819314485,29.26,171.71,171.7,5.8238]
[1746819314685,29.26,171.71,171.63,1.0]
[1746819315785,5.8232,171.72,171.63,1.0]
[1746819316486,5.8235,171.71,171.63,1.0]
[1746819316682,38.68582556,171.74,171.63,1.0]
[1746819316887,5.8243,171.69,171.66,5.8249]
[1746819317783,38.68582556,171.74,171.63,1.0]
[1746819318189,5.8236,171.71,171.68,5.8242]
[1746819318691,5.8231,171.72,171.7,5.8238]
[1746819319092,5.8231,171.72,171.64,3.6999]
[1746819319484,5.8231,171.72,171.69,5.8239]
[1746819319780,5.8235,171.71,171.69,5.8239]
[1746819319984,38.68582556,171.74,171.64,1.7999]
[1746819320477,5.824,171.7,171.64,1.7999]
[1746819320678,5.824,171.7,171.67,5.8248]
[1746819321188,5.824,171.7,171.64,1.7999]
[1746819321690,5.824,171.7,171.67,5.8247]
[1746819322091,29.12,171.73,171.64,1.7999]
[1746819322293,29.12,171.73,171.66,5.8249]
[1746819322591,5.8243,171.69,171.66,5.8249]
[1746819322788,29.12,171.73,171.66,5.8249]
[1746819323086,5.8247,171.68,171.65,5.8254]
[1746819323793,5.8249,171.67,171.64,5.8257]
[1746819324289,5.8258,171.64,171.63,1.0]
[1746819324492,29.04,171.64,171.54,328.7185958]
[1746819324793,29.12,171.63,171.54,83.8785958]
[1746819324983,5.8268,171.61,171.58,5.8276]
[1746819325186,1.4154,171.67,171.54,83.8785958]
[1746819325187,30.5354,171.67,171.54,83.8785958]
[1746819325391,5.8256,171.65,171.61,5.8266]
[1746819326092,5.8256,171.65,171.62,5.8264]
[1746819326394,5.8252,171.66,171.62,5.8264]
[1746819326890,40.12122556,171.67,171.55,32.8406]
[1746819326891,38.70582556,171.67,171.55,32.8406]
[1746819327095,29.12,171.68,171.56,9.58582556]
[1746819327283,29.12,171.68,171.57,29.12]
[1746819327487,34.9445,171.68,171.57,91.12]
[1746819328693,34.9445,171.68,171.64,5.8256]
[1746819329296,29.12,171.68,171.58,29.02]
[1746819329792,5.8257,171.65,171.61,5.8267]
[1746819329993,5.8257,171.65,171.58,29.02]
[1746819330196,5.8257,171.65,171.61,5.8266]
[1746819330397,5.826,171.64,171.58,29.02]
[1746819330595,1.9054,171.67,171.58,29.02]
[1746819330796,1.9054,171.67,171.6,5.827]
[1746819331999,5.8261,171.64,171.6,5.827]
[1746819332201,29.12,171.63,171.6,5.827]
[1746819332997,34.9463,171.63,171.6,5.827]
[1746819333198,29.12,171.63,171.55,3.8206]
[1746819333394,1.9054,171.67,171.55,3.8206]
[1746819333696,29.12,171.68,171.57,9.58582556]
[1746819334400,29.12,171.68,171.66,5.8251]
[1746819335202,29.12,171.68,171.59,28.98]
[1746819335203,29.12,171.68,171.67,5.8248]
[1746819335794,29.12,171.68,171.66,5.825]
[1746819341602,29.12,171.68,171.67,5.8248]
[1746819343302,29.12,171.68,171.66,5.825]
[1746819344500,29.12,171.68,171.67,5.8248]
[1746819345608,29.12,171.68,171.66,5.825]
[1746819346407,29.12,171.68,171.67,5.8248]
[1746819353623,29.12,171.68,171.64,1.0]
[1746819354118,31.0716,171.68,171.64,1.0]
[1746819354320,5.8255,171.65,171.64,1.0]
[1746819355225,5.8264,171.63,171.56,28.96]
[1746819355522,34.7864,171.63,171.56,28.96]
[1746819356225,34.7864,171.63,171.59,5.8272]
[1746819356424,34.7864,171.63,171.56,28.96]
[1746819357320,5.8266,171.62,171.56,28.96]
[1746819357728,5.8266,171.62,171.59,5.8273]
[1746819359927,5.8271,171.61,171.57,5.8279]
[1746819360119,28.96,171.63,171.57,5.8279]
[1746819360327,28.96,171.63,171.55,1.9497]
[1746819361927,5.8271,171.61,171.57,5.8279]
[1746819362329,5.8271,171.61,171.55,1.9497]
[1746819362724,5.8272,171.6,171.55,1.9497]
[1746819362925,5.8272,171.6,171.57,5.8279]
[1746819363930,34.667,171.61,171.58,5.8278]
[1746819366031,5.8272,171.6,171.57,5.8281]
[1746819366730,34.6669,171.61,171.58,5.8278]
[1746819370427,5.8272,171.6,171.58,5.8278]
[1746819371037,28.84,171.61,171.49,28.82]
[1746819371228,28.84,171.61,171.49,34.4496]
[1746819372133,5.8278,171.59,171.55,5.8286]
[1746819372332,28.82,171.58,171.55,5.8286]
[1746819372733,28.82,171.58,171.56,5.8284]
[1746819373430,28.82,171.58,171.55,5.8288]
[1746819375132,5.8283,171.57,171.55,5.8288]
[1746819376037,34.648,171.58,171.56,5.8285]
[1746819376435,34.648,171.58,171.49,34.4296]
[1746819376638,34.648,171.58,171.55,5.8288]
[1746819377138,34.648,171.58,171.56,5.8285]
[1746819377635,44.22582556,171.58,171.49,5.8308]
[1746819377841,44.22582556,171.58,171.45,82.06981631]